Cogmind - Beta 11 @@@ ROGUE MODE // 2022.03.31 @ 16:28:18 Player: Catfish Result: Self-destructed Performance ------------- Evolutions (2) 1000 Regions Visited (5) 1000 Robots Destroyed (29) 145 Value Destroyed (609) 609 Prototype IDs (1) 20 Alien Tech Used (0) 0 Bonus (300) 300 TOTAL SCORE: 3074 Bonus ------- Aligned with FarCom 300 Cogmind --------- Core Integrity 519/550 Matter 300/300 Energy 33/100 System Corruption 3% Temperature Cool (0) Movement Walking (122) Location -8/Materials Parts ------- > --- POWER (2) -------- (None) > --- PROPULSION (4) --- Aluminum Leg Aluminum Leg Aluminum Leg Titanium Leg > --- UTILITY (3) ------ Shield Generator > --- WEAPON (2) ------- Maul Heavy Mace > --- INVENTORY (5) ---- Flight Unit Flight Unit Flight Unit Grenade Launcher Maul Peak State ------------ > --- POWER ------------ Light Ion Engine > --- PROPULSION ------- Aluminum Leg Aluminum Leg > --- UTILITY ---------- Medium Storage Unit Skeleton Box > --- WEAPON ----------- Maul Maul > --- INVENTORY -------- Light Ion Engine Aluminum Leg Aluminum Leg Aluminum Leg Compact Wheel Flight Unit Small Laser Maul Maul [Rating: 15] Favorites ----------- Power Light Ion Engine Engine Light Ion Engine Propulsion Aluminum Leg Leg Aluminum Leg Wheel Compact Wheel Flight Unit Flight Unit Utility Medium Storage Unit Device Skeleton Box Storage Medium Storage Unit Processor Signal Interpreter Hackware Hacking Suite Weapon Maul Energy Gun Medium Laser Ballistic Gun Assault Rifle Impact Weapon Maul Build | -11 -10 -10 -10 -9 -8 ------- Run | Scr Mat Min Exi Min Mat Slots Evolved 4 | . . . . . 4 Power 1 | . . . . . 1 Propulsion 2 | . . . . . 2 Utility 1 | . . . . . 1 Weapon . | . . . . . . Parts Attached 32 | 6 9 1 1 3 12 Power 4 | 1 . 1 . 1 1 Engine 4 | 1 . 1 . 1 1 Core . | . . . . . . Reactor . | . . . . . . Propulsion 16 | 2 4 . . 2 8 Treads . | . . . . . . Leg 11 | . 4 . . . 7 Wheel 2 | 2 . . . . . Hover . | . . . . . . Flight 3 | . . . . 2 1 Utility 6 | 1 3 . 1 . 1 Device 2 | . . . 1 . 1 Storage 2 | 1 1 . . . . Processor 1 | . 1 . . . . Hackware 1 | . 1 . . . . Protection . | . . . . . . Artifact . | . . . . . . Weapon 6 | 2 2 . . . 2 Energy Gun 1 | 1 . . . . . Energy Cannon . | . . . . . . Ballistic Gun 1 | 1 . . . . . Ballistic Cannon . | . . . . . . Launcher . | . . . . . . Special Weapon . | . . . . . . Impact Weapon 4 | . 2 . . . 2 Slashing Weapon . | . . . . . . Piercing Weapon . | . . . . . . Special Melee Weapon . | . . . . . . Unidentified Prototypes 1 | . . . 1 . . Corrupted Parts 2 | . 1 . . . 1 System Corruption 6 | . 5 . . . 1 Parts Lost 4 | . . 1 . 1 2 Power 3 | . . . . 1 2 Propulsion . | . . . . . . Utility 1 | . . 1 . . . Weapon . | . . . . . . Highest Loss Streak 2 | . . 1 . 1 2 To Critical Strikes . | . . . . . . Average Slot Usage (%) 89 | . 98 94 88 96 70 Engine 13 | . 14 14 14 13 10 Leg 25 | . 18 28 28 22 26 Wheel 1 | . 9 . . . . Flight 2 | . . . . 5 9 Device 4 | . . . 3 14 5 Storage 10 | . 14 14 14 11 . Processor 1 | . 9 . . . . Hackware 2 | . 3 8 . . . Energy Gun 1 | . 9 . . . . Ballistic Gun 1 | . 9 . . . . Impact Weapon 22 | . 8 28 28 28 18 Naked Turns . | . . . . . . Heaviest Build 21 | 12 19 19 21 21 18 Greatest Support 47 | 32 32 20 20 20 47 Greatest Overweight (x) 3 | 3 3 . 1 1 . Average Overweight (x) . | . . . . . . Largest Inventory Capacity 10 | 8 10 10 10 10 5 Average Capacity 8 | 7 8 10 10 8 5 Most Carried 10 | 4 8 10 10 9 5 Average Carried 7 | 2 6 8 9 8 4 Final Capacity 10 | 8 10 10 10 5 5 Final Carried 9 | 4 8 9 9 5 5 Class Distribution -------------------- 62% | Scavenger-Mutant 37% | Mutant Dominant Class ---------------- Mutant | -10/Materials Scavenger-Mutant | -10/Mines Scavenger-Mutant | -10/Exiles Scavenger-Mutant | -9/Mines Mutant | -8/Materials Resources | -11 -10 -10 -10 -9 -8 ----------- Run | Scr Mat Min Exi Min Mat Matter Collected 663 | 222 235 19 . 62 125 Remotely . | . . . . . . Salvage Created 943 | . 365 63 . 47 468 Parts 36 | . 19 4 . 4 9 Haulers Intercepted 3 | . 2 . . . 1 Recyclers Shooed . | . . . . . . Parts Field Recycled . | . . . . . . Retrieved Matter . | . . . . . . Parts Self-Destructed . | . . . . . . Prevented . | . . . . . . Kills | -11 -10 -10 -10 -9 -8 ------- Run | Scr Mat Min Exi Min Mat Combat Hostiles Destroyed 20 | . 6 5 . 4 5 Melee 9 | . . 3 . 4 2 Guns 6 | . 6 . . . . Classes Destroyed 10 | . 4 1 . . 5 Worker 2 | . 1 . . . 1 Hauler 3 | . 2 . . . 1 Recycler 2 | . . . . . 2 Operator 1 | . 1 . . . . Watcher 1 | . . . . . 1 Swarmer 9 | . . 5 . 4 . Grunt 8 | . 6 . . . 2 Duelist 1 | . . . . . 1 Sentry 1 | . . . . . 1 Hunter 1 | . . . . . 1 Best Kill Streak 5 | . 5 3 . 4 4 Combat Bots Only 5 | . 5 3 . 4 2 Max Kills in Single Turn 1 | . 1 1 . 1 1 Gunslinging . | . . . . . . Exploded . | . . . . . . Melee 1 | . . 1 . 1 1 Uniques/NPCs Destroyed . | . . . . . . Combat | -11 -10 -10 -10 -9 -8 -------- Run | Scr Mat Min Exi Min Mat Damage Taken 957 | . 282 154 . 147 374 Core 166 | . 23 33 . 79 31 Absorbed by Shields 68 | . . . . . 68 Core Remaining (%) 73 | 100 . . . 46 . Volleys Fired 33 | . 33 . . . . Largest 2 | . 2 . . . . Hottest 70 | . 70 . . . . Shots Fired 66 | . 66 . . . . Gun 66 | . 66 . . . . Cannon . | . . . . . . Launcher . | . . . . . . Special . | . . . . . . Kinetic 33 | . 33 . . . . Thermal 33 | . 33 . . . . Explosive . | . . . . . . Electromagnetic . | . . . . . . Robot Hit Streak 12 | . 12 . . . . Robot Miss Streak 2 | . 2 . . . . Penetration Max . | . . . . . . Secondary Targets . | . . . . . . Shots Hit Robots 77 | . 51 6 . 5 15 Core Hits 26 | . 18 3 . 3 2 Critical Kills 1 | . . 1 . . . Critical Parts Destroyed 9 | . 1 1 . . 7 Critical Strikes 11 | . 2 2 . . 7 Burn 1 | . 1 . . . . Smash 10 | . 1 2 . . 7 Melee Attacks 39 | . 4 10 . 7 18 Impact 39 | . 4 10 . 7 18 Slashing . | . . . . . . Piercing . | . . . . . . Sneak Attacks 8 | . 4 . . . 4 Combat Hostiles . | . . . . . . Follow-up Attacks 4 | . 2 . . . 2 Damage Inflicted 2193 | . 945 299 . 198 751 Guns 604 | . 604 . . . . Cannons . | . . . . . . Explosions . | . . . . . . Melee 1589 | . 341 299 . 198 751 Ramming . | . . . . . . Kinetic 276 | . 276 . . . . Thermal 328 | . 328 . . . . Explosive . | . . . . . . Electromagnetic . | . . . . . . Impact 1589 | . 341 299 . 198 751 Slashing . | . . . . . . Piercing . | . . . . . . Highest Corruption 5 | . 5 5 5 5 3 Average Corruption 4 | . 5 5 5 5 2 Corruption Purged . | . . . . . . Corruption Blocked . | . . . . . . Effects 38 | . 2 8 15 9 4 Message Errors 14 | . 1 4 7 1 1 Matter Fused 7 | . 1 1 2 2 1 Heat Flow Errors 2 | . . . 1 1 . Energy Discharges 5 | . . 1 2 2 . Data Loss (minor) 6 | . . 1 2 2 1 Data Loss (major) 2 | . . . 1 1 . Alerts 2 | . . 1 . . 1 Overload Shots . | . . . . . . Overflow Damage 737 | . 199 68 . 48 422 Projectiles . | . . . . . . Explosions . | . . . . . . Melee 737 | . 199 68 . 48 422 Knockbacks . | . . . . . . Impact . | . . . . . . Kinetic . | . . . . . . Secondary . | . . . . . . Self-Inflicted Damage . | . . . . . . Shots . | . . . . . . Rammed . | . . . . . . Targets Rammed . | . . . . . . Kicked . | . . . . . . Crushed . | . . . . . . Highest Temperature 172 | . 144 . 108 172 . Average Temperature 44 | . 39 . 61 87 . Received Heat Transfer 222 | . 135 . . . 87 Siege Activations . | . . . . . . Robots Corrupted . | . . . . . . Combat Hostiles . | . . . . . . Parts Fried 16 | . . 2 . 2 12 Impact Corruptions 21 | . 3 3 . 2 13 Robots Melted . | . . . . . . Combat Hostiles . | . . . . . . Parts Melted 2 | . 2 . . . . Heat Transferred 1036 | . 1036 . . . . Parts Sabotaged . | . . . . . . Parts Stolen . | . . . . . . Parts Stripped . | . . . . . . Power Chain Reactions . | . . . . . . Missiles Intercepted . | . . . . . . Alert | -11 -10 -10 -10 -9 -8 ------- Run | Scr Mat Min Exi Min Mat Peak Influence 225 | . 225 197 . 80 212 Initial 87 | . . 87 . . . Average 87 | . 148 96 . 20 95 Maximum Alert Level 1 | . 1 . . . 1 Low Security (%) 96 | 100 84 100 . 100 98 Level 1 3 | . 15 . . . 1 Level 2 . | . . . . . . Level 3 . | . . . . . . Level 4 . | . . . . . . Level 5 . | . . . . . . High Security . | . . . . . . Max Security . | . . . . . . Squads Dispatched 2 | . 2 . . . . Investigation 1 | . 1 . . . . Extermination . | . . . . . . Reinforcement 1 | . 1 . . . . Assault . | . . . . . . Garrison . | . . . . . . Intercept . | . . . . . . Searches Triggered . | . . . . . . Construction Impeded . | . . . . . . Haulers Reinforced . | . . . . . . Active Scanning Responses . | . . . . . . Cargo Convoy Interrupts . | . . . . . . Stealth | -11 -10 -10 -10 -9 -8 --------- Run | Scr Mat Min Exi Min Mat Distress Signals 3 | . 1 . . . 2 Communications Jammed . | . . . . . . Distress Signals . | . . . . . . Times Spotted 33 | . 12 6 . 4 11 Peak Tracking Total 4 | . 2 3 . 4 4 Tactical Retreats 2 | . . . . . 2 Traps | -11 -10 -10 -10 -9 -8 ------- Run | Scr Mat Min Exi Min Mat Traps Triggered 2 | . 1 . . . 1 Indirectly . | . . . . . . Trap Hack Attempts . | . . . . . . Triggered . | . . . . . . Disarmed . | . . . . . . Reprogrammed . | . . . . . . Reused . | . . . . . . Traps Extracted . | . . . . . . Installed . | . . . . . . Triggered . | . . . . . . Machines | -11 -10 -10 -10 -9 -8 ---------- Run | Scr Mat Min Exi Min Mat Machines Disabled . | . . . . . . Max in Single Turn . | . . . . . . Machines Sabotaged . | . . . . . . Garrisons Compromised . | . . . . . . Overloaded Fab Kills . | . . . . . . Hacking | -11 -10 -10 -10 -9 -8 --------- Run | Scr Mat Min Exi Min Mat Machines Accessed 8 | . 2 . 3 . 3 Terminals 5 | . 2 . . . 3 Fabricators . | . . . . . . Repair Stations . | . . . . . . Recycling Units . | . . . . . . Scanalyzers . | . . . . . . Garrison Access . | . . . . . . Total Hacks 51 | . 5 . 40 . 6 Successful 46 | . 4 . 40 . 2 Failed 5 | . 1 . . . 4 Catastrophic 1 | . . . . . 1 Database Lockouts . | . . . . . . Manual 11 | . 4 . 1 . 6 Terminals 11 | . 5 . . . 6 Fabricators . | . . . . . . Repair Stations . | . . . . . . Recycling Units . | . . . . . . Scanalyzers . | . . . . . . Garrison Access . | . . . . . . Terminal Hacks 43 | . 3 . 40 . . Record 40 | . . . 40 . . Part Schematic 1 | . 1 . . . . Emergency Access Points 1 | . 1 . . . . Locate Traps 1 | . 1 . . . . Fabricator Hacks . | . . . . . . Repair Station Hacks . | . . . . . . Recycling Unit Hacks . | . . . . . . Scanalyzer . | . . . . . . Garrison Access Hacks . | . . . . . . Unauthorized Hacks 3 | . 1 . . . 2 Terminals 3 | . 1 . . . 2 Botnet 3 | . 1 . . . 2 Fabricators . | . . . . . . Repair Stations . | . . . . . . Recycling Units . | . . . . . . Scanalyzers . | . . . . . . Garrison Access . | . . . . . . Data Cores Recovered . | . . . . . . Used . | . . . . . . Hacking Detections 5 | . 2 . . . 3 Full Trace Events 1 | . 1 . . . . Feedback Events . | . . . . . . Feedback Blocked . | . . . . . . Robot Schematics Acquired . | . . . . . . Robots Built . | . . . . . . Authchips . | . . . . . . Time . | . . . . . . Total Robot Build Rating . | . . . . . . Part Schematics Acquired 1 | . 1 . . . . Parts Built . | . . . . . . Authchips . | . . . . . . Time . | . . . . . . Total Part Build Rating . | . . . . . . Parts Repaired . | . . . . . . Time . | . . . . . . Parts Recycled . | . . . . . . Recycled Matter . | . . . . . . Retrieved Matter . | . . . . . . Retrieved Components . | . . . . . . Parts Scanalyzed . | . . . . . . Part Schematics Acquired . | . . . . . . Parts Damaged . | . . . . . . Bothacking | -11 -10 -10 -10 -9 -8 ------------ Run | Scr Mat Min Exi Min Mat Used RIF Installer . | . . . . . . Robots Hacked . | . . . . . . Non-combat . | . . . . . . Combat . | . . . . . . Robot Hacks Applied . | . . . . . . Relay Couplers Released . | . . . . . . Fabnet Peak Effective % . | . . . . . . Robots Rewired . | . . . . . . Allies Hacked . | . . . . . . Hacks Repelled . | . . . . . . Allies | -11 -10 -10 -10 -9 -8 -------- Run | Scr Mat Min Exi Min Mat Total Allies . | . . . . . . Largest Group . | . . . . . . Highest-Rated Group . | . . . . . . Highest-Rated Ally . | . . . . . . Total Orders . | . . . . . . Ally Attacks . | . . . . . . Total Damage . | . . . . . . Kills . | . . . . . . Allies Corrupted . | . . . . . . Allies Melted . | . . . . . . Intel | -11 -10 -10 -10 -9 -8 ------- Run | Scr Mat Min Exi Min Mat Robot Analysis Total . | . . . . . . Derelict Logs Recovered 2 | . . 2 . . . Drone Launches . | . . . . . . Drone Recoveries . | . . . . . . Exploration | -11 -10 -10 -10 -9 -8 ------------- Run | Scr Mat Min Exi Min Mat Turns Passed 2568 | 54 395 538 694 406 481 Spaces Moved 1826 | 34 229 422 524 223 394 Core 22 | 19 3 . . . . Treads . | . . . . . . Legs 1448 | . 168 422 524 153 181 Wheels 73 | 15 58 . . . . Hover . | . . . . . . Flight 283 | . . . . 70 213 Fastest Speed 44 | 50 100 120 120 117 44 Average Speed 120 | 120 116 120 132 166 79 Slowest Speed 200 | 200 200 120 190 190 125 Overloaded Moves . | . . . . . . Propulsion Burnouts . | . . . . . . Robots Hopped . | . . . . . . Cave-ins Triggered . | . . . . . . Exploration Rate (%) 53 | 3 43 92 92 57 34 Regions Visited 5 Branch Regions 3 Pre-discovered Areas 1 | . . . 1 . . Known Exits Taken . | . . . . . . Unknown Exits Taken 5 | 1 1 1 1 1 . Scrap Searched 2 | . . 1 . 1 . Spaces Dug . | . . . . . . Terrain Destroyed . | . . . . . . Melee . | . . . . . . Projectile . | . . . . . . AOE . | . . . . . . Terrain Rammed . | . . . . . . Walls Destroyed . | . . . . . . Machines Disabled . | . . . . . . Actions | -11 -10 -10 -10 -9 -8 --------- Run | Scr Mat Min Exi Min Mat Total 2064 | 43 286 435 525 246 529 Wait 106 | . 2 2 . 4 98 Move 1821 | 33 228 421 523 222 394 Hop . | . . . . . . Pick Up 20 | 4 5 1 1 3 6 Fast Attach 12 | 6 4 . . . 2 Attach 8 | . 2 . 1 1 4 Detach . | . . . . . . Swap 12 | . 3 1 . 2 6 Drop 19 | . 7 1 . 7 4 Fire 33 | . 33 . . . . Melee 33 | . 2 9 . 7 15 Ram . | . . . . . . Kick . | . . . . . . Crush . | . . . . . . Escape Stasis . | . . . . . . Rewire . | . . . . . . Trap . | . . . . . . Miscellaneous . | . . . . . . Route ------- -11/Scrapyard -10/Materials (discovered 2 exits: [*Mat] / [*Min]) -10/Mines (discovered 3 exits: [*Mat x2] / *Exi) -10/Exiles -9/Mines -8/Materials (discovered 2 exits: Fac / [*Sto]) History --------- Turn | Location | Event 15 | -11/Scrapyard | Discovered new exit (range 16) 55 | -11/Scrapyard | Entered Materials 317 | -10/Materials | Build established: Mutant 368 | -10/Materials | Discovered new exit (range 4) 428 | -10/Materials | Discovered new exit (range 7) 450 | -10/Materials | Entered Mines 705 | -10/Mines | Build established: Scavenger-Mutant 755 | -10/Mines | Learned location of 1 exit from Materials 766 | -10/Mines | Learned Materials emergency access door positions 782 | -10/Mines | Discovered new exit (range 14) 813 | -10/Mines | Discovered new exit (range 9) 983 | -10/Mines | Deemed a non-threat by the Exiles lab entrance 983 | -10/Mines | Discovered new exit (range 5) 988 | -10/Mines | Entered Exiles 1017 | -10/Exiles | Met 8R-AWN 1038 | -10/Exiles | Met EX-HEX 1105 | -10/Exiles | Met EX-DEC 1127 | -10/Exiles | Visited The Gauntlet 1272 | -10/Exiles | Learned location of Zion (-7) 1333 | -10/Exiles | Discovered new exit (range 14) 1412 | -10/Exiles | Met EX-BIN 1429 | -10/Exiles | Aligned with FarCom system 1430 | -10/Exiles | Given EX-Vault access code 1495 | -10/Exiles | Opened EX-Vault 1501 | -10/Exiles | Found Prototype Device 1507 | -10/Exiles | Identified Skeleton Box 1548 | -10/Exiles | Warned to stay clear of 0b10 Research branches 1568 | -10/Exiles | Exiles lab attacked by MAIN.C 1682 | -10/Exiles | Left Exiles lab with Skeleton Box 1682 | -10/Exiles | Entered Mines 1991 | -9/Mines | Core integrity fell below 50% 2075 | -9/Mines | Discovered new exit (range 7) 2088 | -9/Mines | Entered Materials 2088 | -8/Materials | Evolved 4 slots: Power x1, Propulsion x2, Utility x1 2089 | -8/Materials | Identified exit to Factory 2128 | -8/Materials | Discovered new exit (range 10) 2297 | -8/Materials | Build established: Mutant 2569 | -8/Materials | Self-destructed Last Messages --------------- 02545_ R-06 Scavenger system corrupted by crushing effect. 02545_ Com. Wheel fried. 02545_ R-06 Scavenger destroyed. 02548_ K-01 Serf collects debris. 02548_ Sneak attack on K-01 Serf. 02548_ Destroyed Wheel. 02548_ K-01 Serf system corrupted by crushing effect. 02549_ K-01 Serf system terminally corrupted. 02549_ Med. Matter Pod fried. 02549_ Lgt. Ion Engine fried. 02552_ K-01 Serf collects debris. 02552_ Dropped Maul. 02555_ Acquired Hvy. Mace. 02556_ R-06 Scavenger collects Hvy. Mace. 02559_ R-06 Scavenger collects Lgt. Treads. 02564_ R-06 Scavenger collects Corrupted Lgt. Ion Engine. 02567_ R-06 Scavenger collects Maul. 02568_ K-01 Serf collects debris. 02568_ Acquired 20 matter. 02569_ W-25 Informer sends out distress signal. Map ----- +----------------------------------------------------+ | ?????????????????????????????????????# #?# # | | ?????????????????????????????????????# #?#+#### | | ?????????????????????????????????????# #?# #??# | | ?????????????????????????????????????# ###+##### | | ?????????????????????????????????????# ##[ # | | ????????????????????????????????????## % ## # | | ?????????????????????????????####+### #""" # | | ?????????????????????????????# #""" + | | ?????????????????????????????+ #""" # | | ?????????????????????????????# # # | | ?????????????????????????????#### # ######## | | ????????????????????????????????# #######??????# | | ????????????????????????????????# #????????????# | | ????????????????????????????????# #????????????# | | ????????????????????????????????# #????????????# | | ????????????????????????????????# #????????????# | | ????????????????#???????????????# %#????????????# | | ????????????????# ??????????????# #????????????# | | ????????????????# ############## #????????????# | | ????????????????# ! #????????????# | | ????????????????# #????????????# | | ????????????????# """ """ ##???????????? | | ????????????????# ""T"" """ k""" ###+#???????? | | ?????????????#### """"" /""" """ ?????? | | ????????Y? a ! r ?????? | | ?????????? w !@ % r w ?????? | | ?????????????###+############### ###+###?????? | | ???????????????????????????????###+###???????????? | | ?????????????????????????????????? ?????????????? | | ?????????????????????????????????? ?????????????? | | ??????????????????????????????????? ?????????????? | | ???????????????+??????????????????? ?????????????? | | ????????????????o????????????????????????????????? | | ?????????????????????????????????????????????????? | | ?????????????????????????????????????????????????? | | ?????????????????????????????????????????????????? | | ?????????????????????????????????????????????????? | | ?????????????????????????????????????????????????? | | ?????????????????????????????????????????????????? | | ?????????????????????????????????????????????????? | | ?????????????????????????????????????????????????? | | | | | | | | | | | | | | | | | | | +----------------------------------------------------+ Best States ------------- Heat Dissipation 31 Energy Generation 17 Energy Capacity 290 Matter Stores 300 Matter Capacity 300 Sight Range 16 Terrain Scan Density 10 Evasion (%) 61 Offensive Hacking 10 Item Schematics ----------------- Lgt. Ion Engine | -10/Materials | Hacked Robot Schematics ------------------ None Fabricated ------------ Nothing Alien Tech Used ----------------- None Achievements -------------- None Challenges ------------ None Game ------ Seed IntegritySystemKit Manual? 0 Play Time 00:20:29 Cumulative 5.5 hours Start 2022.03.31 @ 15:34:24 End 2022.03.31 @ 16:28:18 Sessions 1 Manual Loads 0 Difficulty Rogue Special Mode None Game No. 19 Rogue 19 Adventurer 0 Explorer 0 Win Type - Total 0 Types 0/0/0/0/0/0/0/0/0 Lore% 15 Gallery% 13 Achievement% 15 Wizard Run 0 Options --------- ASCII 0 Keyboard 0 Movement Numpad Keybinds 0 Fullscreen 2 Font 18/X11Bold Map View 76x50 Tactical HUD 1 Map Filters NONE Filters NONE Steam 1 RUN: 22d17531-90e6-4b92-832b-3bb60e52bf81